Cogmind - Beta 13 @@@ ROGUE MODE // 2024.06.13 @ 01:18:59 Player: Tanner Result: Destroyed by G-34 Mercenary with Small Laser Performance ------------- Evolutions (0) 0 Regions Visited (1) 200 Robots Destroyed (18) 90 Value Destroyed (462) 462 Prototype IDs (0) 0 Alien Tech Used (0) 0 Bonus (0) 0 TOTAL SCORE: 752 Bonus ------- None Cogmind --------- Core Integrity 0/250 Matter 300/300 Energy 250/250 System Corruption 6% Temperature Cool (22) Movement Walking (190) Ox1 Location -10/Materials Parts ------- > --- POWER (1) -------- Ion Engine > --- PROPULSION (2) --- Aluminum Leg Aluminum Leg > --- UTILITY (2) ------ Large Storage Unit Propulsion Shielding > --- WEAPON (2) ------- Medium Laser Light Assault Rifle > --- INVENTORY (15) --- Light Ion Engine Aluminum Leg Aluminum Leg Aluminum Leg Large Storage Unit Large Storage Unit Propulsion Shielding Peak State ------------ > --- POWER ------------ Light Ion Engine > --- PROPULSION ------- Wheel Wheel > --- UTILITY ---------- Large Storage Unit Seismic Detector > --- WEAPON ----------- EM Pulse Gun Small Laser > --- INVENTORY -------- Light Assault Rifle [Rating: 7] Favorites ----------- Power Ion Engine Engine Ion Engine Propulsion Wheel Leg Aluminum Leg Wheel Wheel Utility Large Storage Unit Device Seismic Detector Storage Large Storage Unit Protection Propulsion Shielding Weapon Small Laser Energy Gun Small Laser Ballistic Gun Light Assault Rifle Special Weapon Mining Laser Build | -11 -10 ------- Run | Yrd Mat Slots Evolved . | . . Power . | . . Propulsion . | . . Utility . | . . Weapon . | . . Parts Attached 21 | 7 14 Power 2 | 1 1 Engine 2 | 1 1 Core . | . . Reactor . | . . Propulsion 6 | 3 3 Treads . | . . Leg 2 | . 2 Wheel 4 | 3 1 Hover . | . . Flight . | . . Utility 3 | 1 2 Device 1 | 1 . Storage 1 | . 1 Processor . | . . Hackware . | . . Protection 1 | . 1 Artifact . | . . Weapon 10 | 2 8 Energy Gun 6 | 2 4 Energy Cannon . | . . Ballistic Gun 3 | . 3 Ballistic Cannon . | . . Launcher . | . . Special Weapon 1 | . 1 Impact Weapon . | . . Slashing Weapon . | . . Piercing Weapon . | . . Special Melee Weapon . | . . Unidentified Prototypes . | . . Corrupted Parts 1 | . 1 System Corruption 4 | . 4 Parts Lost 9 | 1 8 Power 1 | . 1 Propulsion 3 | 1 2 Utility 1 | . 1 Weapon 4 | . 4 Highest Loss Streak 3 | 1 3 To Critical Strikes . | . . Average Slot Usage (%) 91 | . 91 Engine 11 | . 11 Leg 14 | . 14 Wheel 12 | . 12 Device 12 | . 12 Storage 13 | . 13 Energy Gun 16 | . 16 Ballistic Gun 7 | . 7 Naked Turns . | . . Heaviest Build 29 | 7 29 Greatest Support 20 | 20 20 Greatest Overweight (x) 8 | . 8 Average Overweight (x) . | . 1 Largest Inventory Capacity 15 | 5 15 Average Capacity 13 | 5 14 Most Carried 8 | 3 8 Average Carried 5 | 1 6 Final Capacity 15 | 5 15 Final Carried 7 | 1 7 Class Distribution -------------------- 87% | Mutant 12% | Scavenger-Mutant Dominant Class ---------------- Mutant | -10/Materials Resources | -11 -10 ----------- Run | Yrd Mat Matter Collected 410 | 265 145 Remotely . | . . Salvage Created 563 | 69 494 Parts 37 | 5 32 Haulers Intercepted . | . . Recyclers Shooed 1 | . 1 Parts Field Recycled . | . . Retrieved Matter . | . . Parts Self-Destructed . | . . Prevented . | . . Kills | -11 -10 ------- Run | Yrd Mat Combat Hostiles Destroyed 14 | 1 13 Guns 10 | 1 9 Cannons 1 | . 1 AOE 2 | . 2 Classes Destroyed 5 | 2 3 Worker 2 | . 2 Tunneler 1 | 1 . Watcher 1 | . 1 Swarmer 3 | . 3 Grunt 11 | 1 10 Best Kill Streak 6 | 2 6 Combat Bots Only 6 | 1 6 Max Kills in Single Turn 2 | 1 2 Gunslinging . | . . Exploded 2 | . 2 Melee . | . . Uniques/NPCs Destroyed . | . . Combat | -11 -10 -------- Run | Yrd Mat Hostile Shots Fired 92 | 12 80 Missed 23 | 2 21 Damage Taken 890 | 104 786 Core 251 | 32 219 Absorbed by Shields . | . . Core Remaining (%) 87 | 87 . Volleys Fired 54 | 8 46 Largest 2 | 2 2 Hottest 100 | 80 100 Shots Fired 96 | 16 80 Gun 95 | 16 79 Cannon . | . . Launcher . | . . Special 1 | . 1 Kinetic 11 | . 11 Thermal 69 | 8 61 Explosive . | . . Electromagnetic 16 | 8 8 Robot Hit Streak 7 | 4 7 Robot Miss Streak 5 | 3 5 Penetration Max . | . . Secondary Targets 4 | . 4 Max Gunslinging Chain 1 | . 1 Shots Hit Robots 60 | 10 50 Core Hits 29 | 3 26 Critical Kills . | . . Critical Parts Destroyed . | . . Critical Strikes 3 | . 3 Burn 3 | . 3 Melee Attacks . | . . Impact . | . . Slashing . | . . Piercing . | . . Sneak Attacks . | . . Combat Hostiles . | . . Follow-up Attacks . | . . Damage Inflicted 945 | 148 797 Guns 746 | 148 598 Cannons . | . . Explosions 151 | . 151 Melee . | . . Ramming 24 | . 24 Kinetic 59 | . 59 Thermal 625 | 54 571 Explosive . | . . Electromagnetic 237 | 94 143 Impact . | . . Slashing . | . . Piercing . | . . Highest Corruption 6 | . 6 Average Corruption 2 | . 2 Corruption Purged . | . . Corruption Blocked . | . . Effects 9 | . 9 Message Errors 3 | . 3 Matter Fused 4 | . 4 Alerts 2 | . 2 Overload Shots . | . . Overflow Damage . | . . Projectiles . | . . Explosions . | . . Melee . | . . Knockbacks . | . . Impact . | . . Kinetic . | . . Secondary . | . . Self-Inflicted Damage 92 | . 92 Shots 3 | . 3 Rammed 2 | . 2 Targets Rammed 5 | . 5 Kicked 3 | . 3 Crushed . | . . Highest Temperature 201 | 158 201 Average Temperature 65 | 91 60 Received Heat Transfer 432 | 60 372 Siege Activations . | . . Robots Corrupted . | . . Combat Hostiles . | . . Parts Fried 1 | 1 . Impact Corruptions . | . . Robots Melted 1 | . 1 Combat Hostiles 1 | . 1 Parts Melted 3 | . 3 Heat Transferred 1693 | 125 1568 Parts Sabotaged . | . . Parts Stolen . | . . Parts Stripped . | . . Power Chain Reactions 2 | . 2 Alert | -11 -10 ------- Run | Yrd Mat Peak Influence 291 | 25 291 Initial 16 | . 16 Average 150 | 5 173 Maximum Alert Level 1 | . 1 Low Security (%) 62 | 100 56 Level 1 37 | . 43 Level 2 . | . . Level 3 . | . . Level 4 . | . . Level 5 . | . . High Security . | . . Max Security . | . . Squads Dispatched 4 | . 4 Investigation 3 | . 3 Extermination . | . . Reinforcement 1 | . 1 Assault . | . . Garrison . | . . Intercept . | . . Searches Triggered . | . . Construction Impeded . | . . Haulers Reinforced . | . . Active Scanning Responses . | . . Cargo Convoy Interrupts . | . . Stealth | -11 -10 --------- Run | Yrd Mat Distress Signals 1 | . 1 Communications Jammed . | . . Distress Signals . | . . Times Spotted 24 | 1 23 Peak Tracking Total 5 | 1 5 Tactical Retreats . | . . Traps | -11 -10 ------- Run | Yrd Mat Traps Triggered 1 | . 1 Indirectly . | . . Trap Hack Attempts . | . . Triggered . | . . Disarmed . | . . Reprogrammed . | . . Reused . | . . Traps Extracted . | . . Installed . | . . Triggered . | . . Machines | -11 -10 ---------- Run | Yrd Mat Machines Disabled 2 | . 2 Max in Single Turn 2 | . 2 Machines Repaired . | . . Machines Dismantled . | . . Machines Sabotaged . | . . Overloaded Fab Kills . | . . Hacking | -11 -10 --------- Run | Yrd Mat Machines Accessed 3 | . 3 Terminals 3 | . 3 Fabricators . | . . Repair Stations . | . . Recycling Units . | . . Scanalyzers . | . . Garrison Access . | . . Total Hacks 14 | . 14 Successful 5 | . 5 Failed 8 | . 8 Catastrophic 2 | . 2 Database Lockouts 1 | . 1 Manual . | . . Terminals 14 | . 14 Fabricators . | . . Repair Stations . | . . Recycling Units . | . . Scanalyzers . | . . Garrison Access . | . . Terminal Hacks 5 | . 5 Record 5 | . 5 Fabricator Hacks . | . . Repair Station Hacks . | . . Recycling Unit Hacks . | . . Scanalyzer . | . . Garrison Access Hacks . | . . Unauthorized Hacks . | . . Terminals . | . . Fabricators . | . . Repair Stations . | . . Recycling Units . | . . Scanalyzers . | . . Garrison Access . | . . Data Cores Recovered . | . . Used . | . . Hacking Detections 3 | . 3 Full Trace Events 2 | . 2 Feedback Events 2 | . 2 Corruption 2 | . 2 Feedback Blocked . | . . Robot Schematics Acquired . | . . Robots Built . | . . Authchips . | . . Time . | . . Total Robot Build Rating . | . . Part Schematics Acquired . | . . Parts Built . | . . Authchips . | . . Time . | . . Total Part Build Rating . | . . Parts Repaired . | . . Time . | . . Parts Recycled . | . . Recycled Matter . | . . Retrieved Matter . | . . Retrieved Components . | . . Parts Scanalyzed . | . . Part Schematics Acquired . | . . Parts Damaged . | . . Bothacking | -11 -10 ------------ Run | Yrd Mat Used RIF Installer . | . . Robots Hacked . | . . Non-combat . | . . Combat . | . . Robot Hacks Applied . | . . Relay Couplers Released . | . . Fabnet Peak Effective % . | . . Robots Rewired . | . . Allies Hacked . | . . Hacks Repelled . | . . Allies | -11 -10 -------- Run | Yrd Mat Total Allies . | . . Largest Group . | . . Highest-Rated Group . | . . Highest-Rated Ally . | . . Total Orders . | . . Ally Attacks . | . . Total Damage . | . . Kills . | . . Allies Corrupted . | . . Allies Melted . | . . Intel | -11 -10 ------- Run | Yrd Mat Robot Analysis Total . | . . Derelict Logs Recovered . | . . Drone Launches . | . . Drone Recoveries . | . . Exploration | -11 -10 ------------- Run | Yrd Mat Turns Passed 764 | 102 662 Spaces Moved 446 | 85 361 Core 22 | 21 1 Treads . | . . Legs 149 | . 149 Wheels 275 | 64 211 Hover . | . . Flight . | . . Fastest Speed 50 | 50 80 Average Speed 124 | 72 136 Slowest Speed 450 | 80 450 Overloaded Moves . | . . Propulsion Burnouts . | . . Robots Hopped . | . . Cave-ins Triggered . | . . Exploration Rate (%) 19 | 6 32 Regions Visited 1 Branch Regions . Pre-discovered Areas . | . . Known Exits Taken . | . . Unknown Exits Taken 1 | 1 . Scrap Searched . | . . Spaces Dug . | . . Terrain Destroyed 9 | . 9 Melee . | . . Projectile . | . . AOE 9 | . 9 Terrain Rammed . | . . Walls Destroyed . | . . Machines Disabled . | . . Actions | -11 -10 --------- Run | Yrd Mat Total 558 | 109 449 Wait . | . . Move 445 | 84 361 Hop . | . . Pick Up 28 | 9 19 Fast Attach . | . . Attach 19 | 7 12 Detach . | . . Swap 2 | . 2 Drop 5 | 1 4 Fire 54 | 8 46 Melee . | . . Ram 2 | . 2 Kick 3 | . 3 Crush . | . . Escape Stasis . | . . Rewire . | . . Trap . | . . Miscellaneous . | . . Route ------- -11/Scrapyard -10/Materials (discovered 1 exit: [*Mat]) History --------- Turn | Location | Event 2 | -11/Scrapyard | Met Revision 17 53 | -11/Scrapyard | Discovered new exit (range 8) 103 | -11/Scrapyard | Entered Materials 235 | -10/Materials | Core integrity fell below 50% 341 | -10/Materials | Core integrity fell below 20% 444 | -10/Materials | Lost 3 parts (1n2w) 637 | -10/Materials | Build established: Mutant 744 | -10/Materials | Discovered new exit (range 10) 760 | -10/Materials | Central database locked down 765 | -10/Materials | Destroyed by G-34 Mercenary with Small Laser Last Messages --------------- spread, they generally don't cause too much trouble nor pose much of a threat, and I find them an interesting study in robotic evolution. I did unfortunately have to displace some of my favorite Derelict populations during the construction of [Complex 0b10]. >>Query(Complex 0b1) Primary subterranean facilities below the faux [Human] city, developed over the several decades following deployment of Project [Seraph] in 2211. Surrounding the complex are cave systems and old mining tunnels now populated by Derelicts. ALERT: Central database lockdown, local access denied. Feedback: System corruption (+1%). ALERT: Suspicious activity at Terminal M008. Dispatching Investigation squad. Acquired 1 matter. Map ----- +----------------------------------------------------+ | ######?????????????????????????? | | +![% #?????????????????????????? | | #### #????########?????????????? | | #### #????# """ #?????????????? | | " # #????# """ #?????????????? | | " # ###### """ #?????????????? | | " + + #?????????????? | | # ###### #?????????????? | | #%#????# #?????????????? | | #%#????########?????????????? | | #### #?????????????????????????? | | ???# #?????????????????????????? | | ???# #?????????????????????????? | | #### ############??????????????? | | ##%## #???????#####??? | | ## ## """ """ #???????# #??? | | # # """ """ #???? #?# < #??? | | " + + """ """ #???? #?#ggg#??? | | " # # """ """ #????"#?# #??? | | " # # """ """ #???Y"#?# #??? | | # # #???""#?# #??? | | # # #??? ?## ##?? | | ### ##############+### #?? | | ??# #?? | | ??# r T #?? | | ??# %@ #?? | | ??# ##############+### % #?? | | ??# #???????????? ?###+###?? | | ??# #???????????? ?????????? | | ??# #???????????# #????????? | | ?? ???????????# #????????? | | ? ???????????+ #????????? | | ???????????# #????????? | | # ##???????????# #????????? | | # ?????????????#####????????? | | # ??????????????????????????? | | # ??????????????????????????? | | ? ??????????????????????????? | | ??? ??????????????????????????? | | ???????????????????????????????? | | ???????????????????????????????? | | ???????????????????????????????? | | ???????????????????????????????? | | ???????????????????????????????? | | ???????????????????????????????? | | ???????????????????????????????? | | ???????????????????????????????? | | ???????????????????????????????? | | ???????????????????????????????? | | ???????????????????????????????? | +----------------------------------------------------+ Best States ------------- Heat Dissipation 25 Energy Generation 10 Energy Capacity 250 Matter Stores 300 Matter Capacity 300 Sight Range 16 Terrain Scan Density 10 Propulsion Shielding 33 Evasion (%) 50 Item Schematics ----------------- None Robot Schematics ------------------ None Fabricated ------------ Nothing Alien Tech Used ----------------- None Achievements -------------- It's Just You Challenges ------------ None Game ------ Seed SubatomicMagneticWings Manual? 0 Play Time 00:09:44 Cumulative 1.5 hours Start 2024.06.13 @ 01:09:54 End 2024.06.13 @ 01:18:59 Sessions 1 Manual Loads 0 Difficulty Rogue Special Mode None Game No. 3 Rogue 3 Adventurer 0 Explorer 0 Win Type - Total 0 Types 0/0/0/0/0/0/0/0/0 Lore% 2 Gallery% 5 Achievement% 4 Wizard Run 0 Options --------- Layout 1 ASCII 0 Keyboard 0 Movement Arrows Keybinds 0 Fullscreen 1 Font 24/Smallcaps Map View 50x35 Zoom Use 0% Tactical HUD 0 Map Filters NONE Filters NONE Steam 0 RUN: e0e83460-c81e-4957-8933-2fe07be33acb